bitfinex/quotes_BTCUSD_20251224
["timestamp","ask_amount","ask_price","bid_price","bid_amount"]
[1766610300062,0.10268847,87663.0,87658.0,0.01140797]
[1766610300454,0.01140654,87669.0,87658.0,0.01140797]
[1766610300649,0.13392667,87668.0,87657.0,0.0114081]
[1766610300819,0.000549,87657.0,87654.0,0.01144]
[1766610301026,0.01140706,87665.0,87655.0,0.01140836]
[1766610301224,0.1339268,87667.0,87657.0,0.0114081]
[1766610301433,0.1339268,87667.0,87655.0,0.01140836]
[1766610301845,0.13392706,87665.0,87654.0,0.02284849]
[1766610302065,0.13392706,87665.0,87655.0,0.01140836]
[1766610302248,0.13392706,87665.0,87656.0,0.01144]
[1766610302855,0.12252,87673.0,87658.0,0.01140797]
[1766610303075,0.00011,87672.0,87661.0,0.01140758]
[1766610303388,0.12252,87669.0,87662.0,0.01144]
[1766610303752,0.12252,87669.0,87662.0,0.02284745]
[1766610303965,0.12252,87669.0,87663.0,0.01140732]
[1766610304287,0.12252,87669.0,87662.0,0.02284745]
[1766610304694,0.12252,87669.0,87663.0,0.01140732]
[1766610305113,0.12252,87669.0,87662.0,0.02284745]
[1766610305405,0.12252,87669.0,87663.0,0.01140732]
[1766610305576,0.12252,87669.0,87664.0,0.01140719]
[1766610305783,0.12252,87669.0,87662.0,0.02284745]
[1766610305920,0.12252,87669.0,87662.0,0.01144]
[1766610306774,0.01155,87672.0,87666.0,0.01140693]
[1766610306971,0.01155,87672.0,87667.0,0.0114068]
[1766610307391,0.01155,87672.0,87666.0,0.01140693]
[1766610307819,0.00011,87672.0,87666.0,0.01140693]
[1766610309353,0.00011,87672.0,87665.0,0.01140706]
[1766610309564,0.00011,87672.0,87668.0,0.01140667]
[1766610310006,0.00011,87672.0,87666.0,0.01140693]
[1766610310204,0.00011,87672.0,87667.0,0.0114068]
[1766610310442,0.00011,87672.0,87668.0,0.01140667]
[1766610310616,0.00011,87672.0,87669.0,0.01140654]
[1766610310758,0.13396,87676.0,87670.0,0.01140641]
[1766610311599,0.13396,87676.0,87669.0,0.01140654]
[1766610312011,0.13396,87676.0,87668.0,0.01140667]
[1766610312953,0.05702456,87682.0,87667.0,0.07988037]
[1766610312954,0.01140354,87692.0,87680.0,0.00939]
[1766610313146,0.12252,87686.0,87681.0,0.010891]
[1766610313391,0.12252,87686.0,87681.0,1e-06]
[1766610313532,0.000549,87681.0,87672.0,0.01140615]
[1766610313887,0.13392432,87686.0,87673.0,0.01144]
[1766610314026,0.13392458,87684.0,87673.0,0.02284602]
[1766610314236,0.13392458,87684.0,87673.0,0.02291602]
[1766610314450,0.12252,87684.0,87674.0,0.01140589]
[1766610314853,0.12252,87684.0,87675.0,0.01140575]
[1766610315374,0.12252,87684.0,87674.0,0.01140589]
[1766610315791,0.12252,87684.0,87675.0,0.01140575]
[1766610316122,0.12252,87684.0,87674.0,0.01140589]
[1766610316323,0.13392458,87684.0,87674.0,0.01140589]
[1766610316531,0.12252,87684.0,87674.0,0.01140589]
[1766610316736,0.12252,87684.0,87675.0,0.01140575]
[1766610317140,0.13392458,87684.0,87674.0,0.01140589]
[1766610317357,0.12252,87684.0,87674.0,0.01140589]
[1766610317590,0.12252,87684.0,87675.0,0.01140575]
[1766610318248,0.12197,87684.0,87677.0,0.01140549]
[1766610318458,0.12197,87684.0,87678.0,0.01144]
[1766610320248,0.12197,87684.0,87674.0,0.01140589]
[1766610320449,0.12197,87684.0,87675.0,0.01144]
[1766610321494,0.01140406,87688.0,87676.0,0.01140562]
[1766610321690,0.01160393,87689.0,87678.0,0.02083]
[1766610321906,0.01140406,87688.0,87678.0,0.02083]
[1766610322181,0.01140406,87688.0,87678.0,0.03223536]
[1766610322319,0.01140406,87688.0,87678.0,0.02083]
[1766610322524,0.01160393,87689.0,87679.0,0.01140523]
[1766610322724,0.01160393,87689.0,87680.0,0.01144]
[1766610323050,0.0002,87689.0,87680.0,0.01144]
[1766610323259,0.0002,87689.0,87681.0,0.01140497]
[1766610323435,0.0002,87689.0,87681.0,0.03223497]
[1766610323840,0.0002,87689.0,87681.0,0.02083]
[1766610324028,0.0002,87689.0,87681.0,0.03223497]
[1766610325208,0.01140367,87691.0,87681.0,0.03223497]
[1766610325418,0.12252,87692.0,87681.0,0.03223497]
[1766610325737,0.12252,87692.0,87682.0,0.01140484]
[1766610326370,0.12252,87692.0,87683.0,0.01140471]
[1766610326695,0.12252,87692.0,87684.0,0.01140458]
[1766610326866,0.12252,87692.0,87685.0,0.01144]
[1766610328093,0.12252,87692.0,87686.0,0.01140432]
[1766610328250,0.12252,87692.0,87687.0,0.01140419]
[1766610328967,0.12252,87692.0,87686.0,0.01140432]
[1766610329150,0.12252,87692.0,87685.0,0.02284445]
[1766610329660,0.12252,87692.0,87685.0,0.01144]
[1766610330050,0.12252,87692.0,87685.0,0.02284445]
[1766610330254,0.01140315,87695.0,87685.0,0.02284445]
[1766610330569,0.01140302,87696.0,87685.0,0.02284445]
[1766610330768,0.01144,87699.0,87696.0,0.000349]
[1766610330951,0.0114025,87700.0,87692.0,0.01144]
[1766610331811,0.01140302,87696.0,87692.0,0.01144]
[1766610332108,0.01140315,87695.0,87692.0,0.01124]
[1766610332616,0.01140302,87696.0,87692.0,0.01124]
[1766610332972,0.01140263,87699.0,87692.0,0.01124]
[1766610333375,0.01140302,87696.0,87692.0,0.01124]
[1766610333688,0.00024953,87694.0,87692.0,0.01124]
[1766610345115,5.3e-07,87694.0,87692.0,0.01124]
[1766610363312,0.05701733,87694.0,87692.0,0.01124]
[1766610363519,5.3e-07,87694.0,87692.0,0.01124]
[1766610364175,0.05701733,87694.0,87692.0,0.01124]
[1766610364386,0.05701733,87694.0,87680.0,0.06843023]
[1766610364387,0.01140484,87682.0,87673.0,7e-05]
[1766610364500,0.12758,87685.0,87674.0,0.01144]
[1766610364703,0.12758,87685.0,87673.0,0.05711602]
[1766610364704,0.01140458,87684.0,87675.0,0.01144]
[1766610365274,0.13898445,87685.0,87675.0,0.01144]
[1766610365484,0.000249,87675.0,87673.0,7e-05]
[1766610365766,0.01140471,87683.0,87674.0,0.01144]
[1766610365994,0.01140458,87684.0,87674.0,0.01144]
[1766610366338,0.01140458,87684.0,87674.0,0.02284589]
[1766610366536,0.13898445,87685.0,87676.0,0.01140562]
[1766610366537,0.12758,87685.0,87676.0,0.01140562]
[1766610366741,0.12758,87685.0,87677.0,0.01140549]
[1766610367953,0.12758,87685.0,87676.0,0.01140562]
[1766610368154,0.12758,87685.0,87677.0,0.01140549]
[1766610368371,0.12758,87685.0,87676.0,0.01140562]
[1766610368575,0.12758,87685.0,87674.0,0.06846897]
[1766610368779,0.12758,87685.0,87675.0,0.01140575]
[1766610369028,0.12758,87685.0,87676.0,0.01140562]
[1766610370085,0.12758,87685.0,87675.0,0.01140575]
[1766610371582,0.01140497,87681.0,87674.0,0.01144]
[1766610371797,0.01140484,87682.0,87674.0,0.01144]
[1766610372126,0.01140471,87683.0,87674.0,0.01144]
[1766610373107,0.19600675,87685.0,87674.0,0.01144]
[1766610373479,0.13898445,87685.0,87674.0,0.01144]
[1766610373686,0.00055,87674.0,87673.0,7e-05]
[1766610373898,0.00055,87674.0,87673.0,0.01144]
[1766610374095,0.12758,87678.0,87668.0,0.01140667]
[1766610374359,0.12758,87678.0,87669.0,0.02284654]
[1766610374518,0.01140549,87677.0,87669.0,0.01144]
[1766610374725,0.13898536,87678.0,87669.0,0.01144]
[1766610374934,0.13898549,87677.0,87669.0,0.01144]
[1766610375146,0.13898575,87675.0,87670.0,0.01144]
[1766610375329,0.13898575,87675.0,87671.0,0.01144]
[1766610375330,0.12758,87675.0,87671.0,0.01144]
[1766610376436,0.12758,87675.0,87671.0,0.02284628]
[1766610376850,0.12758,87675.0,87672.0,0.01140615]
[1766610377084,0.127031,87675.0,87672.0,0.01140615]
[1766610378044,0.127031,87675.0,87671.0,0.02284628]
[1766610379201,0.127031,87675.0,87672.0,0.01140615]
[1766610379817,0.02284471,87683.0,87672.0,0.01140615]
[1766610379818,0.12758,87682.0,87672.0,0.01140615]
[1766610379987,0.12758,87682.0,87673.0,0.01140602]
[1766610381644,0.12758,87682.0,87674.0,0.01140589]
[1766610381844,0.12758,87682.0,87673.0,0.01140602]
[1766610382245,0.12758,87682.0,87672.0,0.01140615]
[1766610382448,0.13898484,87682.0,87672.0,0.01140615]
[1766610383048,0.12758,87682.0,87672.0,0.01140615]
[1766610383231,0.12758,87682.0,87673.0,0.01140602]
[1766610383895,0.12758,87682.0,87672.0,0.01140615]
[1766610384142,0.13898484,87682.0,87672.0,0.01140615]
[1766610384344,0.12758,87682.0,87672.0,0.01140615]
[1766610384944,0.12758,87682.0,87674.0,0.01140589]
[1766610385142,0.12758,87682.0,87675.0,0.01140575]
[1766610385595,0.02284419,87687.0,87675.0,0.1232342]
[1766610385798,0.02293299,87687.0,87677.0,0.01140549]
[1766610385993,8.88e-05,87687.0,87681.0,0.01140497]
[1766610386228,0.39082712,87700.0,87678.0,0.01140536]
[1766610386229,0.01140237,87701.0,87690.0,0.0114038]
[1766610386446,0.0684127,87703.0,87691.0,0.01144]
[1766610386646,0.01140224,87702.0,87691.0,0.01144]
[1766610386865,0.01140289,87697.0,87691.0,0.01144]
[1766610387060,0.01140302,87696.0,87691.0,0.01144]
[1766610387892,0.01140289,87697.0,87691.0,0.01144]
[1766610388244,0.01140276,87698.0,87691.0,0.01144]
[1766610388447,0.01140289,87697.0,87691.0,0.01144]
[1766610388674,0.01140302,87696.0,87691.0,0.01144]
[1766610389467,0.01140289,87697.0,87691.0,0.01144]
[1766610390273,0.01140302,87696.0,87691.0,0.01144]
[1766610392243,0.01140315,87695.0,87691.0,0.010891]
[1766610392465,0.01140302,87696.0,87691.0,0.010891]
[1766610392875,0.01140315,87695.0,87691.0,0.010891]
[1766610393254,0.01140302,87696.0,87691.0,0.010891]
[1766610395996,0.01140289,87697.0,87691.0,0.010891]
[1766610397090,0.01140302,87696.0,87691.0,0.010891]
[1766610397824,0.01140289,87697.0,87691.0,0.010891]
[1766610397944,0.01140276,87698.0,87691.0,0.010891]
[1766610401774,0.01140289,87697.0,87691.0,0.010891]
[1766610402961,0.01140302,87696.0,87691.0,0.010891]
[1766610403161,0.01140289,87697.0,87691.0,0.010891]
[1766610403766,0.01140302,87696.0,87691.0,0.010891]
[1766610404087,0.01140302,87696.0,87692.0,0.01144]
[1766610404088,0.01140315,87695.0,87692.0,0.01144]
[1766610404288,0.01140315,87695.0,87692.0,0.01089]
[1766610408433,0.01140341,87693.0,87692.0,0.01144]
[1766610408572,0.18179341,87693.0,87690.0,0.01144]
[1766610409192,0.0114038,87690.0,87686.0,0.01144]
[1766610409391,0.0114038,87690.0,87684.0,0.04567358]
[1766610409592,0.06842377,87689.0,87684.0,0.04567358]
[1766610410755,0.01140406,87688.0,87684.0,0.04567358]
[1766610411151,0.01140419,87687.0,87684.0,0.04567358]
[1766610411381,0.01140406,87688.0,87684.0,0.04567358]
[1766610412208,0.0114926,87690.0,87684.0,0.04567358]
[1766610412209,8.88e-05,87690.0,87684.0,0.04567358]
[1766610412410,0.01140406,87688.0,87684.0,0.04567358]
[1766610412778,0.01140406,87688.0,87684.0,0.01144]
[1766610412988,0.01140406,87688.0,87685.0,0.01140406]
[1766610414428,0.01140393,87689.0,87685.0,0.01140406]
[1766610416240,0.0114926,87690.0,87685.0,0.01140406]
[1766610417168,0.01140393,87689.0,87685.0,0.01140406]
[1766610420493,0.01140406,87688.0,87685.0,0.01140406]
[1766610420694,0.01140393,87689.0,87685.0,0.01140406]
[1766610422143,0.01140406,87688.0,87685.0,0.01140406]
[1766610422504,0.06842477,87688.0,87685.0,0.01140406]
[1766610422836,0.01140406,87688.0,87685.0,0.01140406]
[1766610425623,0.01140393,87689.0,87685.0,0.01140406]
[1766610425829,0.01140406,87688.0,87685.0,0.01140406]
[1766610426230,0.01140393,87689.0,87685.0,0.01140406]
[1766610428656,0.0114926,87690.0,87685.0,0.01140406]
[1766610429236,0.01140367,87691.0,87690.0,0.0004602]
[1766610429437,0.01140341,87693.0,87690.0,0.0004602]
[1766610429642,0.02284302,87696.0,87688.0,0.18887]
[1766610429847,0.01144,87696.0,87688.0,0.18887]
[1766610430190,0.01144,87696.0,87688.0,0.20027406]
[1766610430416,0.01098,87696.0,87688.0,0.20027406]
[1766610430871,0.07985463,87701.0,87691.0,0.18068]
[1766610431655,0.01140276,87698.0,87691.0,0.18068]
[1766610432649,0.01140263,87699.0,87691.0,0.18068]
[1766610433614,0.01140276,87698.0,87691.0,0.18068]
[1766610434969,0.01140263,87699.0,87691.0,0.18068]
[1766610435639,0.0114025,87700.0,87691.0,0.18068]
[1766610436213,0.01140263,87699.0,87691.0,0.18068]
[1766610438214,0.01140276,87698.0,87691.0,0.18068]
[1766610438760,0.0114025,87700.0,87691.0,0.18068]
[1766610439159,0.01140263,87699.0,87691.0,0.18068]
[1766610439588,0.01140276,87698.0,87691.0,0.18068]
[1766610440102,0.01140263,87699.0,87691.0,0.18068]
[1766610443123,0.01140276,87698.0,87691.0,0.18068]
[1766610446156,0.01140263,87699.0,87691.0,0.18068]
[1766610448562,0.0114025,87700.0,87691.0,0.18068]
[1766610448769,0.01140263,87699.0,87691.0,0.18068]
[1766610448948,0.0114025,87700.0,87691.0,0.18068]
[1766610454072,0.01140263,87699.0,87691.0,0.18068]
[1766610455457,0.0114025,87700.0,87691.0,0.18068]
[1766610457350,0.01140276,87698.0,87691.0,0.18068]
[1766610458731,0.01140302,87696.0,87690.0,0.01140276]
[1766610458937,0.000549,87691.0,87690.0,0.01140276]
[1766610459349,0.01140328,87694.0,87690.0,0.01140276]
[1766610459555,0.01140341,87693.0,87690.0,0.01140276]
[1766610459955,0.01140341,87693.0,87679.0,0.0661838]
[1766610459956,0.01140393,87689.0,87679.0,0.0661838]
[1766610460156,0.01140393,87689.0,87685.0,0.03423358]
[1766610460581,0.0114038,87690.0,87685.0,0.03423358]
[1766610461299,0.01140393,87689.0,87685.0,0.03423358]
[1766610461928,0.21074354,87692.0,87689.0,0.00055]
[1766610462080,0.01144,87695.0,87688.0,0.01140406]
[1766610462280,0.01144,87697.0,87689.0,0.18893]
[1766610468039,0.02284289,87697.0,87687.0,0.01144]
[1766610468226,0.02284289,87697.0,87685.0,0.06846188]
[1766610468227,0.19934,87692.0,87685.0,0.01144]
[1766610468387,0.01140367,87691.0,87685.0,0.01144]
[1766610468583,0.0114038,87690.0,87685.0,0.01144]
[1766610469008,0.01140393,87689.0,87685.0,0.01144]
[1766610469223,0.0114038,87690.0,87685.0,0.01144]
[1766610469388,0.01140393,87689.0,87685.0,0.01144]
[1766610470133,0.01140393,87689.0,87685.0,0.02284393]
[1766610471097,0.21074354,87692.0,87682.0,0.01144]
[1766610471098,0.19934,87683.0,87682.0,0.01144]
[1766610471303,0.19934,87683.0,87679.0,5.65e-05]
[1766610471304,0.21074471,87683.0,87679.0,5.65e-05]
[1766610471502,0.21074471,87683.0,87681.0,0.01144]
[1766610472135,0.01140471,87683.0,87681.0,0.01144]
[1766610472638,0.01140471,87683.0,87681.0,0.010891]
[1766610473138,0.01140484,87682.0,87679.0,0.0114965]
[1766610473373,0.01140484,87682.0,87679.0,5.65e-05]
[1766610473572,0.01140523,87679.0,87671.0,0.20762]
[1766610473778,0.01145767,87679.0,87675.0,0.01144]
[1766610474002,0.01140536,87678.0,87675.0,0.01144]
[1766610474173,0.01085636,87678.0,87675.0,0.01144]
[1766610474351,0.01145767,87679.0,87675.0,0.01144]
[1766610474668,0.01140536,87678.0,87675.0,0.01144]
[1766610474828,0.01140549,87677.0,87667.0,0.0456451]
[1766610475031,0.01140549,87677.0,87668.0,0.01144]
[1766610475434,0.01140562,87676.0,87668.0,0.01144]
[1766610475674,0.01140562,87676.0,87667.0,0.0342383]
[1766610475675,0.06843418,87676.0,87667.0,0.0342383]
[1766610475893,0.01140589,87674.0,87669.0,0.01144]
[1766610476094,0.01140602,87673.0,87669.0,0.01144]
[1766610476308,0.01140589,87674.0,87669.0,0.01144]
[1766610476463,0.01140602,87673.0,87669.0,0.01144]
[1766610476906,0.01140615,87672.0,87669.0,0.01144]
[1766610477086,0.01140602,87673.0,87669.0,0.01144]
[1766610477463,0.01140589,87674.0,87669.0,0.01144]
[1766610477667,0.01140602,87673.0,87669.0,0.01144]
[1766610478006,0.01140589,87674.0,87669.0,0.01144]
[1766610478166,0.06843499,87675.0,87669.0,0.01144]
[1766610479613,0.19934,87678.0,87669.0,0.01144]
[1766610479946,0.19934,87678.0,87669.0,0.02284654]
[1766610480133,0.19934,87678.0,87669.0,0.01144]
[1766610480336,0.19934,87678.0,87669.0,0.02284654]
[1766610480878,0.19934,87678.0,87669.0,0.01144]
[1766610481494,0.21074536,87678.0,87669.0,0.01144]
[1766610482143,0.01140549,87677.0,87669.0,0.01144]
[1766610482561,0.01140589,87674.0,87669.0,0.01144]
[1766610482763,0.01140562,87676.0,87669.0,0.01144]
[1766610482904,0.01140575,87675.0,87669.0,0.01144]
[1766610483524,0.01140562,87676.0,87669.0,0.01144]
[1766610484331,0.01140549,87677.0,87669.0,0.01144]
[1766610484964,0.19934,87678.0,87669.0,0.01144]
[1766610484965,0.21074536,87678.0,87669.0,0.01144]
[1766610485986,0.01140549,87677.0,87669.0,0.01144]
[1766610489412,0.01140562,87676.0,87669.0,0.01144]
[1766610489764,0.21074536,87678.0,87669.0,0.01144]
[1766610489977,0.41126286,87808.0,87682.0,0.01140484]
[1766610489978,0.22804959,87701.0,87682.0,0.01140484]
[1766610490323,0.22804959,87701.0,87692.0,0.01140354]
[1766610490324,5.247e-05,87701.0,87692.0,0.01140354]
[1766610490471,5.247e-05,87701.0,87691.0,0.22982367]
[1766610490675,0.0114025,87700.0,87691.0,0.21842]
[1766610490864,0.01140263,87699.0,87691.0,0.21842]
[1766610491063,0.06841775,87697.0,87691.0,0.21842]
[1766610491319,0.000549,87691.0,87687.0,0.01144]
[1766610491718,0.22474,87694.0,87687.0,0.01144]
[1766610491719,0.01140341,87693.0,87687.0,0.01144]
[1766610492422,0.01140354,87692.0,87687.0,0.01144]
[1766610492621,0.01140341,87693.0,87687.0,0.01144]
[1766610493059,0.01140354,87692.0,87687.0,0.01144]
[1766610493209,0.01140341,87693.0,87687.0,0.01144]
[1766610493597,0.01140328,87694.0,87686.0,0.02288]
[1766610493808,0.01140328,87694.0,87686.0,0.01144]
[1766610494019,0.01140328,87694.0,87686.0,0.02284341]
[1766610494649,0.01140341,87693.0,87686.0,0.01144]
[1766610494851,0.01140354,87692.0,87686.0,0.01144]
[1766610495260,0.000549,87686.0,87679.0,0.0661838]
[1766610495437,0.000549,87686.0,87683.0,0.01140354]
[1766610495647,0.000549,87686.0,87682.0,0.01144]
[1766610495810,0.23614393,87689.0,87682.0,0.02284393]
[1766610496227,0.22474,87689.0,87682.0,0.02284393]
[1766610497694,0.01144,87694.0,87689.0,0.00055]
[1766610497834,0.01140341,87693.0,87689.0,0.00055]
[1766610498032,0.02284328,87694.0,87683.0,0.01140471]
[1766610498677,0.02284328,87694.0,87684.0,0.01140458]
[1766610498881,0.02284328,87694.0,87683.0,0.01140471]
[1766610499077,0.01144,87694.0,87683.0,0.01140471]
[1766610499281,0.01144,87697.0,87690.0,0.0114038]
[1766610499524,0.01144,87697.0,87694.0,0.00055]
[1766610499718,0.01144,87697.0,87689.0,0.22982393]
[1766610500622,0.01144,87697.0,87690.0,0.0114038]
[1766610500840,0.01144,87697.0,87690.0,0.2298238]
[1766610501030,0.01144,87701.0,87691.0,0.20388]
[1766610501234,0.01140276,87698.0,87691.0,0.20388]
[1766610501437,0.06845243,87701.0,87691.0,0.20388]
[1766610501805,0.01140276,87698.0,87691.0,0.20388]
[1766610502376,0.01140302,87696.0,87691.0,0.20388]
[1766610503545,0.01140315,87695.0,87691.0,0.20388]
[1766610504606,0.01140315,87695.0,87691.0,0.203331]
[1766610505385,0.01140315,87695.0,87682.0,0.07983263]
[1766610505386,0.01140367,87691.0,87682.0,0.01140393]
[1766610505563,0.01140354,87692.0,87684.0,0.01144]
[1766610505766,0.01140367,87691.0,87684.0,0.01144]
[1766610505914,0.01140354,87692.0,87684.0,0.01144]
[1766610506117,0.22474,87690.0,87684.0,0.01144]
[1766610508465,0.224191,87690.0,87684.0,0.01144]
[1766610509380,0.2355948,87690.0,87684.0,0.01144]
[1766610509588,0.224191,87690.0,87684.0,0.01144]
[1766610510823,0.22439,87688.0,87681.0,0.01140367]
[1766610511032,0.224939,87684.0,87682.0,0.01144]
[1766610511419,0.224939,87684.0,87681.0,3.67e-06]
[1766610511420,0.22439,87684.0,87681.0,3.67e-06]
[1766610511775,0.22439,87681.0,87674.0,0.01144]
[1766610512255,0.22439,87681.0,87668.0,0.01140667]
[1766610512256,0.000549,87674.0,87673.0,0.01144]
[1766610512454,0.000549,87674.0,87672.0,0.01144]
[1766610512760,0.01140549,87677.0,87672.0,0.01144]
[1766610513101,0.23579562,87676.0,87672.0,0.01144]
[1766610513359,0.000549,87672.0,87664.0,0.01140719]
[1766610513604,0.22439,87676.0,87667.0,0.0342408]
[1766610513957,0.23579562,87676.0,87667.0,0.0342408]
[1766610514543,0.01140575,87675.0,87667.0,0.0342408]
[1766610514746,0.23579562,87676.0,87667.0,0.0342408]
[1766610515162,0.22439,87676.0,87667.0,0.0342408]
[1766610515478,0.23579562,87676.0,87667.0,0.0342408]
[1766610515823,0.22439,87676.0,87667.0,0.0342408]
[1766610516449,0.224337,87676.0,87667.0,0.0342408]
[1766610517402,0.224337,87676.0,87669.0,0.01140654]
[1766610517767,0.224337,87676.0,87668.0,0.01140667]
[1766610517971,0.224337,87676.0,87667.0,0.0342408]
[1766610518395,0.224337,87676.0,87667.0,0.0456476]
[1766610519029,0.224337,87676.0,87668.0,0.01140667]
[1766610519321,0.224337,87676.0,87667.0,0.0456476]
[1766610520611,0.224337,87676.0,87667.0,0.0342408]
[1766610527922,0.01140549,87677.0,87668.0,0.07246]
[1766610528297,0.01140562,87676.0,87668.0,0.07246]
[1766610529574,0.01140549,87677.0,87668.0,0.07246]
[1766610530810,0.01140562,87676.0,87668.0,0.07246]
[1766610531323,0.01140575,87675.0,87668.0,0.07246]
[1766610531503,0.01140602,87673.0,87668.0,0.07246]
[1766610532264,0.01140575,87675.0,87668.0,0.07246]
[1766610532520,0.01140602,87673.0,87668.0,0.07246]
[1766610533115,0.01140602,87673.0,87667.0,0.0342408]
[1766610534418,0.01140589,87674.0,87667.0,0.0342408]
[1766610535039,0.28043484,87675.0,87667.0,0.0342408]
[1766610535351,0.212,87675.0,87667.0,0.0342408]
[1766610535507,0.01140536,87678.0,87667.0,0.0342408]
[1766610535709,0.06843149,87679.0,87668.0,0.01140667]
[1766610536107,0.01140523,87679.0,87669.0,0.01140654]
[1766610536307,0.22340523,87679.0,87668.0,0.01140667]
[1766610536842,0.01140536,87678.0,87667.0,0.0456476]
[1766610537224,0.01140562,87676.0,87667.0,0.0342408]
[1766610537466,0.01140549,87677.0,87667.0,0.0342408]
[1766610537685,0.01140641,87670.0,87667.0,0.0342408]
[1766610537842,0.01140641,87670.0,87657.0,0.0743881]
[1766610537843,0.0010982,87667.0,87660.0,0.01144]
[1766610538055,0.22340654,87669.0,87660.0,0.01144]
[1766610538291,0.01140667,87668.0,87660.0,0.01144]
[1766610538443,0.01140667,87668.0,87652.0,0.00011]
[1766610538444,0.22962,87662.0,87652.0,0.00011]
[1766610538650,0.22962,87662.0,87653.0,0.01144]
[1766610538651,0.01140758,87661.0,87653.0,0.01144]
[1766610538861,0.01140771,87660.0,87653.0,0.01144]
[1766610539407,0.24102758,87661.0,87653.0,0.01144]
[1766610539587,0.01140771,87660.0,87653.0,0.01144]
[1766610540194,0.01140784,87659.0,87653.0,0.01144]
[1766610540396,0.01140771,87660.0,87653.0,0.01144]
[1766610540796,0.01140771,87660.0,87652.0,0.00016244]
[1766610540991,0.01140771,87660.0,87653.0,0.01144]
[1766610541216,0.01140797,87658.0,87653.0,0.01144]
[1766610541421,0.01140784,87659.0,87653.0,0.01144]
[1766610541583,0.0114081,87657.0,87653.0,0.010891]
[1766610541780,0.01140914,87649.0,87637.0,0.0114107]
[1766610541984,0.2281574,87659.0,87637.0,0.0114107]
[1766610541985,0.24102953,87646.0,87639.0,0.02284953]
[1766610542185,0.24102953,87646.0,87638.0,0.01144]
[1766610542186,0.24102966,87645.0,87638.0,0.01144]
[1766610542387,0.22962,87645.0,87638.0,0.01144]
[1766610542590,0.22962,87645.0,87637.0,0.00035407]
[1766610542801,0.24102966,87645.0,87638.0,0.01144]
[1766610543018,0.01140992,87643.0,87638.0,0.01144]
[1766610543316,0.23017,87638.0,87637.0,4.07e-06]
[1766610543638,0.24158057,87638.0,87633.0,4.07e-06]
[1766610543841,0.24138438,87638.0,87633.0,4.07e-06]
[1766610544204,0.22997381,87638.0,87633.0,4.07e-06]
[1766610545593,0.24138438,87638.0,87633.0,4.07e-06]
[1766610545750,0.01141083,87636.0,87626.0,0.04564]
[1766610545953,0.01141083,87636.0,87626.0,0.05708]
[1766610546303,0.01141083,87636.0,87625.0,0.01144]
[1766610546304,0.22962,87635.0,87625.0,0.01144]
[1766610546452,0.01141135,87632.0,87625.0,0.01144]
[1766610546656,0.06846782,87633.0,87625.0,0.01144]
[1766610546836,0.01141122,87633.0,87625.0,0.01144]
[1766610547039,0.01141122,87633.0,87623.0,0.00011]
[1766610547265,0.01141122,87633.0,87624.0,0.01144]
[1766610548901,0.24103109,87634.0,87624.0,0.01144]
[1766610550473,0.01141122,87633.0,87624.0,0.01144]
[1766610550845,0.01141135,87632.0,87624.0,0.01144]
[1766610551046,0.24103031,87640.0,87628.0,0.01141187]
[1766610551252,0.24103031,87640.0,87632.0,0.000549]
[1766610551497,0.24103031,87640.0,87629.0,0.02285174]
[1766610551673,0.24103031,87640.0,87629.0,0.01144]
[1766610552273,0.01141044,87639.0,87629.0,0.02285174]
[1766610552472,0.01141044,87639.0,87629.0,0.01144]
[1766610552693,0.22962,87640.0,87630.0,0.01141161]
[1766610552903,0.01141044,87639.0,87629.0,0.02285174]
[1766610553214,0.22962,87640.0,87629.0,0.02285174]
[1766610553372,0.22962,87640.0,87629.0,0.01144]
[1766610553587,0.24103096,87635.0,87629.0,0.01144]
[1766610553790,0.01141122,87633.0,87629.0,0.01144]
[1766610554001,0.01141122,87633.0,87629.0,0.01089]
[1766610554204,0.01141109,87634.0,87629.0,0.01089]
[1766610555748,0.24103109,87634.0,87629.0,0.01089]
[1766610557319,0.22962,87634.0,87629.0,0.01089]
[1766610557525,0.01141096,87635.0,87629.0,0.01089]
[1766610559233,0.0114107,87637.0,87629.0,0.01089]
[1766610559435,0.06881758,87638.0,87629.0,0.01089]
[1766610559633,0.00035381,87638.0,87629.0,0.01089]
[1766610559808,0.00035381,87638.0,87630.0,0.01141161]
[1766610560187,0.00035381,87638.0,87631.0,0.01141148]
[1766610560400,0.00035381,87638.0,87629.0,0.01089]
[1766610560597,0.00035381,87638.0,87629.0,0.02230174]
[1766610560798,0.01176438,87638.0,87629.0,0.01089]
[1766610561264,0.0114107,87637.0,87629.0,0.01089]
[1766610562214,0.01176438,87638.0,87629.0,0.01089]
[1766610562418,0.00035381,87638.0,87629.0,0.01089]
[1766610562842,0.00035381,87638.0,87629.0,0.02230174]
[1766610563310,8.1e-07,87638.0,87633.0,0.01141122]
[1766610563694,8.1e-07,87638.0,87634.0,0.01141109]
[1766610564117,8.1e-07,87638.0,87632.0,0.01141135]
[1766610564462,8.1e-07,87638.0,87633.0,0.01141122]
[1766610564786,8.1e-07,87638.0,87632.0,0.01141135]
[1766610564984,8.1e-07,87638.0,87633.0,0.01141122]
[1766610565746,8.1e-07,87638.0,87634.0,0.01144]
[1766610565945,8.1e-07,87638.0,87634.0,0.02285109]
[1766610566146,8.1e-07,87638.0,87634.0,0.01144]
[1766610571733,0.01108871,87642.0,87634.0,0.01144]
[1766610571940,0.01108871,87642.0,87634.0,0.01151271]
[1766610573707,0.01108871,87642.0,87635.0,0.01144]
[1766610573881,0.01108871,87642.0,87635.0,0.01154618]
[1766610574677,0.01140992,87643.0,87635.0,0.01154618]
[1766610576104,0.06845909,87644.0,87635.0,0.01154618]
[1766610576927,0.01140992,87643.0,87635.0,0.01154618]
[1766610577920,0.01141005,87642.0,87635.0,0.01154618]
[1766610578227,0.01140901,87650.0,87643.0,0.140106]
[1766610578481,0.01140914,87649.0,87643.0,0.13991]
[1766610578938,0.01140914,87649.0,87642.0,0.01144]
[1766610579163,0.01140953,87646.0,87642.0,0.01144]
[1766610579406,0.01140914,87649.0,87642.0,0.01144]
[1766610580090,0.01140914,87649.0,87643.0,0.01144]
[1766610582117,0.01140927,87648.0,87643.0,0.01144]
[1766610582342,0.01140927,87648.0,87640.0,0.00011]
[1766610582529,0.01140927,87648.0,87641.0,0.01144]
[1766610583350,0.2178,87645.0,87635.0,0.00010618]
[1766610583554,0.01140888,87651.0,87645.0,0.000196]
[1766610583805,0.01140901,87650.0,87645.0,0.000196]
[1766610584012,0.01140901,87650.0,87642.0,0.01144]